Workbook

Sheet Hoja1
E6: PRESUPUESTO DE GASTOS Y APLICACIONES FINANCIERAS 2025
E7: EN RD$
E8: DESCRIPCION | F8: 0001 - Dirección y administración | G8: 0003 - Legislación parlacen | H8: 0002 - Discusión de iniciativas legislativas y fiscalización | I8: PRESSUPUETO APROBADO RD$ | J8: MODIFICACIONES PRESUPUESTARIA | K8: PRESUPUESTO MODIFICADO
E9: PRESUPUESTO TOTAL | F9: =+F10+F16+F25+F35+F45+F48+F54 -> 4,699,872,430.00 | G9: =+G10+G48+G16+G25+G35 -> 189,787,529.00 | H9: =+H10 -> 1,006,715,219.00 | I9: 5,896,375,178.00 | J9: =+I9-I68 -> 0
A10: 21 | E10: 2.1-REMUNERACIONES Y CONTRIBUCIONES | F10: =SUM(F11:F15) -> 2,659,226,731.00 | G10: =+G11 -> 41,309,809.00 | H10: =+H11+H16 -> 1,006,715,219.00 | I10: =SUM(I11:I15) -> 2,659,226,731.00 | J10: =SUM(J11:J15) -> 40,323,105.33 | K10: =+I10+J10 -> 2,699,549,836.33
E11: 2.1.1 - REMUNERACIONES | F11: 1,707,490,766.00 | G11: 41,309,809.00 | H11: 799,715,219.00 | I11: 1,707,490,766.00 | J11: 28,693,213.33 | K11: =+I11+J11 -> 1,736,183,979.33
E12: 2.1.2 - SOBRESUELDOS | F12: 124,798,662.00 | G12: 31,506,316.00 | H12: 400,715,219.00 | I12: 124,798,662.00 | J12: 8,425,396.00 | K12: =+I12+J12 -> 133,224,058.00
E13: 2.1.3 - DIETAS Y GASTOS DE REPRESENTACIÓN | F13: 220,723,990.00 | G13: 2,625,693.00 | I13: 220,723,990.00 | K13: 220,723,990.00
E14: 2.1.4 - GRATIFICACIONES Y BONIFICACIONES | F14: 432,302,000.00 | I14: 432,302,000.00 | K14: 432,302,000.00
E15: 2.1.5 - CONTRIBUCIONES A LA SEGURIDAD SOCIAL | F15: 173,911,313.00 | G15: 7,177,800.00 | H15: 399,000,000.00 | I15: 173,911,313.00 | J15: 3,204,496.00 | K15: 177,115,809.00
A16: 22 | E16: 2.2-CONTRATACION DE SERVICIOS | F16: =SUM(F17:F24) -> 857,491,392.00 | G16: 43,273,758.00 | H16: 207,000,000.00 | I16: =SUM(I17:I24) -> 882,448,565.00 | J16: =SUM(J17:J24) -> 8,021,782.17 | K16: =SUM(K17:K24) -> 890,470,347.17
E17: 2.2.1 - SERVICIOS BÁSICOS | F17: 68,742,951.00 | G17: 851,908.00 | I17: 68,742,951.00 | J17: 6,938,412.17 | K17: 75,681,363.17
E18: 2.2.2 - PUBLICIDAD, IMPRESIÓN Y ENCUADERNACIÓN | F18: 135,365,938.00 | I18: 185,365,938.00 | K18: 185,365,938.00
E19: 2.2.3 - VIATICOS | K19: 0
E20: 2.2.4 - TRANSPORTE Y ALMACENAJE | F20: 19,197,060.00 | I20: 19,197,060.00 | J20: 1,083,370.00 | K20: 20,280,430.00
E21: 2.2.5 - ALQUILERES Y RENTAS | F21: 45,161,660.00 | G21: 459,195.00 | I21: 45,161,660.00 | K21: 45,161,660.00
E22: 2.2.6 - SEGUROS | F22: 304,125,468.00 | I22: 333,125,468.00 | K22: 333,125,468.00
E23: 2.2.7 - SERVICIOS DE CONSERVACIÓN, REPARACIONES MENORES E INSTALACIONES TEMPORALES | F23: 93,218,202.00 | I23: 64,218,202.00 | K23: 64,218,202.00
E24: 2.2.8 - OTROS SERVICIOS NO INCLUIDOS EN CONCEPTOS ANTERIORES | F24: 191,680,113.00 | G24: 30,962,655.00 | I24: 166,637,286.00 | K24: 166,637,286.00
A25: 23 | E25: 2.3-MATERIALES Y SUMINISTROS | F25: =SUM(F26:F34) -> 242,134,497.00 | G25: 2,844,000.00 | I25: =SUM(I26:I34) -> 242,134,497.00 | J25: =SUM(J26:J34) -> 0 | K25: =SUM(K26:K34) -> 242,134,497.00
E26: 2.3.1 - ALIMENTOS Y PRODUCTOS AGROFORESTALES | F26: 68,000,000.00 | I26: 68,000,000.00 | K26: 68,000,000.00
E27: 2.3.2 - TEXTILES Y VESTUARIOS | F27: 2,300,000.00 | I27: 2,300,000.00 | K27: 2,300,000.00
E28: 2.3.3 - PAPEL, CARTÓN E IMPRESOS | F28: 10,823,000.00 | I28: 10,823,000.00 | K28: 10,823,000.00
E29: 2.3.4 - PRODUCTOS MEDICINALES PARA USO HUMANO | F29: 10,000,000.00 | I29: 10,000,000.00 | K29: 10,000,000.00
E30: 2.3.5 - CUERO, CAUCHO Y PLÁSTICO | F30: 10,600,000.00 | I30: 10,600,000.00 | K30: 10,600,000.00
E31: 2.3.6 - PRODUCTOS DE MINERALES, METÁLICOS Y NO METÁLICOS | F31: 1,330,747.00 | I31: 1,330,747.00 | K31: 1,330,747.00
E32: 2.3.7 - COMBUSTIBLES, LUBRICANTES, PRODUCTOS QUÍMICOS Y CONEXOS | F32: 113,480,750.00 | G32: 2,844,000.00 | I32: 113,480,750.00 | K32: 113,480,750.00
E33: 2.3.8 - GASTOS QUE SE ASIGNARAN DURANTE EL EJERCICIO | K33: 0
E34: 2.3.9 - PRODUCTOS Y ÚTILES VARIOS | F34: 25,600,000.00 | I34: 25,600,000.00 | K34: 25,600,000.00
A35: 26 | E35: 2.6-BIENES MUEBLES, INMUEBLES E INTANGIBLES | F35: =SUM(F36:F44) -> 168,905,200.00 | G35: 1,610,148.00 | I35: =SUM(I36:I44) -> 168,905,200.00 | J35: =SUM(J36:J44) -> 0 | K35: =SUM(K36:K44) -> 168,905,200.00
E36: 2.6.1 - MOBILIARIO Y EQUIPO | F36: 35,000,000.00 | G36: 1,610,148.00 | I36: 35,000,000.00 | K36: 35,000,000.00
E37: 2.6.2 - MOBILIARIO Y EQUIPO DE AUDIO, AUDIOVISUAL, RECREATIVO Y EDUCACIONAL | F37: 12,955,200.00 | I37: 12,955,200.00 | K37: 12,955,200.00
E38: 2.6.3 - EQUIPO E INSTRUMENTAL, CIENTÍFICO Y LABORATORIO | F38: 100,000.00 | I38: 100,000.00 | K38: 100,000.00
E39: 2.6.4 - VEHÍCULOS Y EQUIPO DE TRANSPORTE, TRACCIÓN Y ELEVACIÓN | F39: 500,000.00 | I39: 500,000.00 | K39: 500,000.00
E40: 2.6.5 - MAQUINARIA, OTROS EQUIPOS Y HERRAMIENTAS | F40: 18,100,000.00 | I40: 18,100,000.00 | K40: 18,100,000.00
E41: 2.6.6 - EQUIPOS DE DEFENSA Y SEGURIDAD | F41: 750,000.00 | I41: 750,000.00 | K41: 750,000.00
E42: 2.6.7 - ACTIVOS BIOLOGICOS CULTIVABLES | K42: 0
E43: 2.6.8 - BIENES INTANGIBLES | F43: 1,500,000.00 | I43: 1,500,000.00 | K43: 1,500,000.00
E44: 2.6.9. - EDIFICIOS NO RESIDENCIALES | F44: 100,000,000.00 | I44: 100,000,000.00 | K44: 100,000,000.00
A45: 27 | E45: 2.7-OBRAS | F45: 101,300,000.00 | I45: =SUM(I46:I47) -> 101,300,000.00 | J45: =SUM(J46:J47) -> 1,823,695.83 | K45: =SUM(K46:K47) -> 103,123,695.83
E46: 2.7.1 - OBRAS EN EDIFICACIONES | F46: 100,000,000.00 | I46: 100,000,000.00 | K46: 100,000,000.00
E47: 2.7.2- INFRAESTRUTURAS | F47: 1,300,000.00 | I47: 1,300,000.00 | J47: 1,823,695.83 | K47: 3,123,695.83
A48: 0000 - Administracion de Contribuciones Especiales | F48: =+F52+F54 -> 630,702,835.00 | G48: =+G58 -> 100,749,814.00 | I48: 731,452,649.00
E49: 2.8. -ADQUIICION DE ACTIVO CON FINE DE POLITICA
E50: 2.8.1 INTERESES DE LA DEUDA PUBLICA | K50: =+I50+J50 -> 0
E51: 2.8.2 INTERESES DE LA DEUDA EXTERNA | K51: 0
A52: 2.4 | E52: 2.4-TRANSFERENCIAS CORRIENTES | F52: =+F53 -> 590,591,060.00 | I52: =SUM(I53:I58) -> 1,842,360,185.00 | J52: =SUM(J53:J58) -> (50,168,583.33) | K52: =SUM(K53:K58) -> 1,792,191,601.67
E53: 2.4.1 - TRANSFERENCIAS CORRIENTES AL SECTOR PRIVADO | F53: 590,591,060.00 | I53: 630,702,835.00 | J53: (50,168,583.33) | K53: =+I53+J53 -> 580,534,251.67
E54: 2.4.2- TRANSFERENCIA CORRIENTES AL GOBIERNO GENERAL NACIONAL | F54: 40,111,775.00 | I54: 1,018,715,219.00 | K54: 1,018,715,219.00
E55: 2.4.3 - TRANSFERENCIA CORRIENTE AL GOBIERNO GENERALES LOCALES | K55: 0
E56: 2.4.4 - TRANSFERENCIA CORRIENTE A EMPRESAS PUBLICAS NO FINANCIERAS | K56: 0
E57: 2.4.5 - TRANSFERENCIA CORRIENTE A EMPRESAS PUBLICAS FINANCIERAS | K57: 0
E58: 2.4.7 - TRANSFERENCIAS CORRIENTE AL SECTOR EXTERNO | G58: 100,749,814.00 | I58: 192,942,131.00 | K58: 192,942,131.00
E59: 2.4.9 - TRANSFERENCIAS CORRIENTES A OTRAS INSTITUCIONES PÚBLICAS | K59: 0
E60: 2.5 - TRANSFERENCIAS DE CAPITAL
E61: 2.5.1 - TRANSFERENCIAS DE CAPITAL AL SECTOR PRIVADO | K61: =+I61+J61 -> 0
E62: 2.5.2 - TRANSFERENCIAS DE CAPITAL AL GOBIERNO GENERAL NACIONAL | K62: 0
E63: 2.5.3 - TRANSFERENCIAS DE CAPITAL A GOBIERNOS GENERALES LOCALES | K63: 0
E64: 2.5.4 - TRANSFERENCIAS DE CAPITAL A EMPRESAS PÚBLICAS NO FINANCIERAS | K64: 0
E65: 2.5.5 - TRANSFERENCIAS DE CAPITAL A INSTITUCIONES PÚBLICAS FINANCIERAS | K65: 0
E66: 2.5.6 - TRANSFERENCIAS DE CAPITAL AL SECTOR EXTERNO | K66: 0
E67: 2.5.9 - TRANSFERENCIAS DE CAPITAL A OTRAS INSTITUCIONES PÚBLICAS | K67: 0
E68: TOTAL GENERAL | F68: =+F9 -> 4,699,872,430.00 | G68: =+G48+G35+G25+G16+G11 -> 189,787,529.00 | H68: =+H11+H16 -> 1,006,715,219.00 | I68: =+I52+I45+I35+I25+I16+I10 -> 5,896,375,178.00 | J68: =+J52+J45+J35+J25+J16+J10 -> 0 | K68: 5,896,375,178.00
E70: Fuente SIGEF
E71: Presupuesto aprobado: Se refiere al propuesto aprobado en Ley de Presupuesto General del Etado
E72: Presupuesto Modificado: Se refiere al propuesto aprobado enen casso de que el Congreso Nacional Apruebe un presupuesto complementario
E73: Total Devengado: Son los recursos financieros que surge con la obligacion de pago por la recepcion de conformidad de obras, bienes y servicios oportunamente contratados, o en los casos de gastos sin contraprestacion, por haberse cumplido los requisitos administrativos dispuesto por el reglamento de la presente ley.
E75: PREPARADO POR: | I75: APROBADO POR:

Sheet Hoja3
